fUST/lending_fUST_20241114
["ID","MTS","AMOUNT","RATE_DAILY","PERIOD"]
[342173849,1731532235844,-1018.28,0.00027671,4]
[342173850,1731532235854,-500.0,0.00027671,4]
[342173851,1731532235864,-608.18,0.00027671,4]
[342173852,1731532235874,-500.0,0.00027671,4]
[342173853,1731532235883,-500.0,0.00027671,4]
[342173854,1731532235892,-500.0,0.00027671,4]
[342173855,1731532235902,-500.0,0.00027671,4]
[342173856,1731532235911,-503.84188911,0.00027671,4]
[342173857,1731532235921,-500.0,0.00027671,4]
[342173858,1731532235931,-500.0,0.00027671,4]
[342173859,1731532235940,-1499.76,0.00027671,4]
[342173860,1731532235950,-500.0,0.00027671,4]
[342173861,1731532235960,-500.0,0.00027671,4]
[342173862,1731532235970,-500.0,0.00027671,4]
[342173863,1731532235981,-1789.42,0.00027671,4]
[342173864,1731532235991,-413.92567668,0.00027671,4]
[342173865,1731532236002,-500.0,0.00027671,4]
[342173866,1731532236020,-500.0,0.00027671,4]
[342173867,1731532236029,-500.0,0.00027671,4]
[342173868,1731532236039,-1157.5,0.00027671,4]
[342173869,1731532236049,-500.0,0.00027671,4]
[342173870,1731532236058,-500.0,0.00027671,4]
[342173871,1731532236068,-500.0,0.00027671,4]
[342173872,1731532236078,-500.0,0.00027671,4]
[342173873,1731532236088,-561.35651619,0.00027671,4]
[342173874,1731532236098,-500.0,0.00027671,4]
[342173875,1731532236108,-500.0,0.00027671,4]
[342173876,1731532236118,-500.0,0.00027671,4]
[342173877,1731532236128,-500.0,0.00027671,4]
[342173878,1731532236138,-2063.36,0.00027671,4]
[342173879,1731532236147,-500.0,0.00027671,4]
[342173880,1731532236157,-994.42,0.00027671,4]
[342173881,1731532236166,-500.0,0.00027671,4]
[342173882,1731532236176,-500.0,0.00027671,4]
[342173883,1731532236186,-500.0,0.00027671,4]
[342173884,1731532236196,-500.0,0.00027671,4]
[342173885,1731532236206,-500.0,0.00027671,4]
[342173886,1731532236215,-500.0,0.00027671,4]
[342173887,1731532236226,-500.0,0.00027671,4]
[342173888,1731532236236,-500.0,0.00027671,4]
[342173889,1731532236246,-500.0,0.00027671,4]
[342173890,1731532236256,-952.72,0.00027671,4]
[342173891,1731532236266,-576.71,0.00027671,4]
[342173892,1731532236276,-500.0,0.00027671,4]
[342173893,1731532236285,-500.0,0.00027671,4]
[342173894,1731532236295,-506.82,0.00027671,4]
[342173895,1731532236304,-386.0,0.00027671,2]
[342173896,1731532236313,-500.0,0.00027673,5]
[342173897,1731532236323,-500.0,0.00027673,5]
[342173898,1731532236333,-454.869319,0.00027781,30]
[342173899,1731532236342,-821.633406,0.00027835,2]
[342173900,1731532236352,-151.0,0.00027845,7]
[342173901,1731532236362,-151.0,0.00027845,7]
[342173902,1731532236371,-151.0,0.00027845,7]
[342173903,1731532236381,-151.0,0.00027845,7]
[342173904,1731532236391,-151.0,0.00027845,7]
[342173905,1731532236400,-151.0,0.00027845,7]
[342173906,1731532236410,-1940.5388,0.00027867,15]
[342173907,1731532236432,-651.0,0.000279,2]
[342173908,1731532236442,-500.0,0.00027921,5]
[342173909,1731532236452,-151.0,0.00027945,7]
[342173910,1731532236463,-151.0,0.00027945,7]
[342173911,1731532236473,-151.0,0.00027945,7]
[342173912,1731532236483,-151.0,0.00027945,2]
[342173913,1731532236493,-151.0,0.00027945,7]
[342173914,1731532236603,-151.0,0.00027945,7]
[342173915,1731532236613,-151.0,0.00027945,7]
[342173916,1731532236624,-500.0,0.00027945,4]
[342173917,1731532236634,-500.0,0.00027945,4]
[342173918,1731532236644,-500.0,0.00027945,4]
[342173919,1731532236653,-500.0,0.00027945,4]
[342173920,1731532236663,-500.0,0.00027945,4]
[342173921,1731532236674,-500.0,0.00027945,4]
[342173922,1731532236684,-500.0,0.00027945,4]
[342173923,1731532236695,-500.0,0.00027945,4]
[342173925,1731532236705,-500.0,0.00027945,4]
[342173928,1731532236716,-500.0,0.00027945,4]
[342173929,1731532236727,-500.0,0.00027945,4]
[342173931,1731532236737,-500.0,0.00027945,4]
[342173933,1731532236748,-500.0,0.00027945,4]
[342173935,1731532236758,-735.33,0.00027945,4]
[342173938,1731532236769,-500.0,0.00027945,4]
[342173939,1731532236779,-500.0,0.00027945,4]
[342173941,1731532236789,-500.0,0.00027945,4]
[342173943,1731532236799,-500.0,0.00027945,4]
[342173945,1731532236809,-500.0,0.00027945,4]
[342173947,1731532236818,-500.0,0.00027945,4]
[342173949,1731532236828,-971.59,0.00027945,4]
[342173951,1731532236837,-500.0,0.00027945,4]
[342173954,1731532236848,-500.0,0.00027945,4]
[342173956,1731532236858,-759.04,0.00027945,4]
[342173958,1731532236869,-500.0,0.00027945,4]
[342173960,1731532236879,-299.69645739,0.00027945,4]
[342173962,1731532236889,-500.0,0.00027945,4]
[342173964,1731532236899,-500.0,0.00027945,4]
[342173966,1731532236909,-500.0,0.00027945,4]
[342173968,1731532236935,-500.0,0.00027945,4]
[342173970,1731532236945,-500.0,0.00027945,4]
[342173972,1731532236955,-500.0,0.00027945,4]
[342173974,1731532236965,-500.0,0.00027945,4]
[342173976,1731532236974,-500.0,0.00027945,4]
[342173978,1731532236984,-500.0,0.00027945,4]
[342173980,1731532236994,-500.0,0.00027945,4]
[342173982,1731532237006,-500.0,0.00027945,4]
[342173984,1731532237015,-500.0,0.00027945,4]
[342173986,1731532237026,-500.0,0.00027945,4]
[342173988,1731532237035,-560.48,0.00027945,4]
[342173990,1731532237045,-204.64385354,0.00027945,4]
[342173992,1731532237054,-500.0,0.00027945,4]
[342173994,1731532237063,-500.0,0.00027945,4]
[342173996,1731532237073,-500.0,0.00027945,4]
[342173998,1731532237084,-500.0,0.00027945,4]
[342174000,1731532237092,-595.58775514,0.00027945,4]
[342174002,1731532237102,-500.0,0.00027945,4]
[342174003,1731532237112,-5692.77,0.00027945,4]
[342174004,1731532237122,-500.0,0.00027945,4]
[342174005,1731532237131,-500.0,0.00027945,4]
[342174006,1731532237141,-500.0,0.00027945,4]
[342174007,1731532237151,-500.0,0.00027945,4]
[342174008,1731532237160,-500.0,0.00027945,4]
[342174009,1731532237170,-500.0,0.00027945,4]
[342174010,1731532237180,-562.33,0.00027945,4]
[342174011,1731532237190,-500.0,0.00027945,4]
[342174012,1731532237200,-500.0,0.00027945,4]
[342174013,1731532237209,-500.0,0.00027945,4]
[342174014,1731532237219,-500.0,0.00027945,4]
[342174015,1731532237228,-500.0,0.00027945,4]
[342174016,1731532237238,-593.16868818,0.00027945,4]
[342174017,1731532237247,-500.0,0.00027945,4]
[342174018,1731532237257,-500.0,0.00027945,4]
[342174019,1731532237266,-1018.28,0.00027945,4]
[342174020,1731532237275,-500.0,0.00027945,4]
[342174021,1731532237285,-608.18,0.00027945,4]
[342174022,1731532237295,-500.0,0.00027945,4]
[342174023,1731532237304,-500.0,0.00027945,4]
[342174024,1731532237314,-500.0,0.00027945,4]
[342174025,1731532237325,-500.0,0.00027945,4]
[342174026,1731532237335,-500.0,0.00027945,4]
[342174027,1731532237344,-500.0,0.00027945,4]
[342174028,1731532237353,-1499.76,0.00027945,4]
[342174029,1731532237363,-500.0,0.00027945,4]
[342174030,1731532237373,-500.0,0.00027945,4]
[342174031,1731532237382,-500.0,0.00027945,4]
[342174032,1731532237391,-1789.42,0.00027945,4]
[342174033,1731532237401,-500.0,0.00027945,4]
[342174034,1731532237415,-500.0,0.00027945,4]
[342174035,1731532237425,-500.0,0.00027945,4]
[342174036,1731532237452,-1157.5,0.00027945,4]
[342174037,1731532237462,-500.0,0.00027945,4]
[342174038,1731532237471,-500.0,0.00027945,4]
[342174039,1731532237481,-500.0,0.00027945,4]
[342174040,1731532237491,-500.0,0.00027945,4]
[342174041,1731532237500,-210.98,0.00027945,4]
[342174042,1731532237510,-500.0,0.00027945,4]
[342174043,1731532237520,-500.0,0.00027945,4]
[342174044,1731532237530,-500.0,0.00027945,4]
[342174045,1731532237540,-2063.36,0.00027945,4]
[342174046,1731532237553,-500.0,0.00027945,4]
[342174047,1731532237568,-994.42,0.00027945,4]
[342174048,1731532237578,-500.0,0.00027945,4]
[342174049,1731532237587,-500.0,0.00027945,4]
[342174050,1731532237597,-500.0,0.00027945,4]
[342174051,1731532237606,-500.0,0.00027945,4]
[342174052,1731532237616,-500.0,0.00027945,4]
[342174053,1731532237627,-500.0,0.00027945,4]
[342174054,1731532237636,-324.65,0.00027945,4]
[342174055,1731532237646,-500.0,0.00027945,4]
[342174056,1731532237656,-952.72,0.00027945,4]
[342174057,1731532237666,-576.71,0.00027945,4]
[342174058,1731532237677,-500.0,0.00027945,4]
[342174059,1731532237688,-318.86177692,0.00027945,4]
[342174060,1731532237698,-506.82,0.00027945,4]
[342174061,1731532237708,-500.0,0.00027973,5]
[342174062,1731532237718,-500.0,0.00027973,5]
[342174063,1731532237727,-300.0,0.00028,2]
[342174064,1731532237737,-421.48,0.00028,2]
[342174065,1731532237747,-500.23869116,0.00028121,5]
[342174066,1731532237757,-500.0,0.00028121,5]
[342174067,1731532237766,-250.132007,0.00028219,7]
[342174068,1731532237776,-151.0,0.00028219,7]
[342174069,1731532237786,-151.0,0.00028219,2]
[342174070,1731532237795,-151.0,0.00028219,7]
[342174071,1731532237804,-151.0,0.00028219,7]
[342174072,1731532237814,-151.0,0.00028219,7]
[342174073,1731532237824,-500.0,0.00028219,4]
[342174074,1731532237834,-500.0,0.00028219,4]
[342174075,1731532237844,-500.0,0.00028219,4]
[342174076,1731532237854,-500.0,0.00028219,4]
[342174077,1731532237863,-500.0,0.00028219,4]
[342174078,1731532237873,-500.0,0.00028219,4]
[342174079,1731532237883,-500.0,0.00028219,4]
[342174080,1731532237892,-500.0,0.00028219,4]
[342174081,1731532237902,-500.0,0.00028219,4]
[342174082,1731532237911,-500.0,0.00028219,4]
[342174083,1731532237922,-500.0,0.00028219,4]
[342174084,1731532237950,-514.25,0.00028219,4]
[342174085,1731532237960,-735.33,0.00028219,4]
[342174086,1731532237970,-500.0,0.00028219,4]
[342174087,1731532237980,-500.0,0.00028219,4]
[342174088,1731532237991,-500.0,0.00028219,4]
[342174089,1731532238004,-500.0,0.00028219,4]
[342174090,1731532238013,-500.0,0.00028219,4]
[342174091,1731532238023,-500.0,0.00028219,4]
[342174092,1731532238033,-971.59,0.00028219,4]
[342174093,1731532238043,-500.0,0.00028219,4]
[342174094,1731532238053,-500.0,0.00028219,4]
[342174095,1731532238063,-759.04,0.00028219,4]
[342174097,1731532238073,-500.0,0.00028219,4]
[342174098,1731532238084,-500.0,0.00028219,4]
[342174099,1731532238094,-466.67466169,0.00028219,4]
[342174100,1731532238193,-33.32533831,0.00028219,4]
[342174101,1731532238203,-500.0,0.00028219,4]
[342174102,1731532238214,-500.0,0.00028219,4]
[342174103,1731532238223,-500.0,0.00028219,4]
[342174104,1731532238233,-500.0,0.00028219,4]
[342174105,1731532238243,-500.0,0.00028219,4]
[342174106,1731532238252,-151.0,0.00028219,7]
[342174107,1731532238267,-151.0,0.00028219,7]
[342174108,1731532238276,-500.0,0.00028219,4]
[342174109,1731532238285,-500.0,0.00028219,4]
[342174111,1731532238294,-500.0,0.00028219,4]
[342174114,1731532238303,-500.0,0.00028219,4]
[342174115,1731532238313,-500.0,0.00028219,4]
[342174116,1731532238323,-560.48,0.00028219,4]
[342174117,1731532238333,-500.0,0.00028219,4]
[342174119,1731532238344,-153.597442,0.00028219,7]
[342174120,1731532238354,-513.5457821,0.00028219,4]
[342174121,1731532238364,-151.0,0.00028219,7]
[342174122,1731532238374,-500.0,0.00028219,4]
[342174123,1731532238385,-500.0,0.00028219,4]
[342174124,1731532238395,-5692.77,0.00028219,4]
[342174125,1731532238405,-500.0,0.00028219,4]
[342174126,1731532238416,-500.0,0.00028219,4]
[342174128,1731532238425,-500.0,0.00028219,4]
[342174129,1731532238435,-500.0,0.00028219,4]
[342174131,1731532238454,-500.0,0.00028219,4]
[342174132,1731532238464,-500.0,0.00028219,4]
[342174134,1731532238474,-151.0,0.00028219,7]
[342174135,1731532238488,-562.33,0.00028219,4]
[342174136,1731532238498,-500.0,0.00028219,4]
[342174137,1731532238508,-151.0,0.00028219,7]
[342174138,1731532238517,-151.0,0.00028219,7]
[342174139,1731532238527,-500.0,0.00028219,4]
[342174140,1731532238537,-500.0,0.00028219,4]
[342174142,1731532238547,-151.0,0.00028219,7]
[342174144,1731532238556,-500.0,0.00028219,4]
[342174145,1731532238566,-500.0,0.00028219,4]
[342174146,1731532238576,-500.0,0.00028219,4]
[342174147,1731532238586,-500.0,0.00028219,4]
[342174148,1731532238595,-1018.28,0.00028219,4]
[342174149,1731532238605,-500.0,0.00028219,4]
[342174150,1731532238615,-608.18,0.00028219,4]
[342174152,1731532238625,-500.0,0.00028219,4]
[342174154,1731532238634,-500.0,0.00028219,4]
[342174156,1731532238644,-500.0,0.00028219,4]
[342174158,1731532238655,-500.0,0.00028219,4]
[342174160,1731532238665,-175.384822,0.00028219,7]
[342174162,1731532238675,-500.0,0.00028219,4]
[342174164,1731532238685,-500.0,0.00028219,4]
[342174167,1731532238708,-1499.76,0.00028219,4]
[342174169,1731532238720,-175.384822,0.00028219,7]
[342174170,1731532238730,-455.69846203,0.00028219,4]
[342174173,1731532238739,-500.0,0.00028219,4]
[342174174,1731532238748,-500.0,0.00028219,4]
[342174175,1731532238759,-1789.42,0.00028219,4]
[342174176,1731532238770,-151.0,0.00028219,7]
[342174177,1731532238779,-500.0,0.00028219,4]
[342174178,1731532238788,-500.0,0.00028219,4]
[342174179,1731532238798,-500.0,0.00028219,4]
[342174180,1731532238808,-465.05973038,0.00028219,4]
[342174181,1731532238819,-692.44026962,0.00028219,4]
[342174182,1731532238829,-500.0,0.00028219,4]
[342174183,1731532238838,-500.0,0.00028219,4]
[342174184,1731532238847,-500.0,0.00028219,4]
[342174185,1731532238856,-500.0,0.00028219,4]
[342174186,1731532238864,-151.0,0.00028219,7]
[342174187,1731532238874,-500.0,0.00028219,4]
[342174188,1731532238883,-151.0,0.00028219,7]
[342174189,1731532238893,-151.0,0.00028219,7]
[342174190,1731532238902,-500.0,0.00028219,4]
[342174191,1731532238911,-500.0,0.00028219,4]
[342174192,1731532238920,-2063.36,0.00028219,4]
[342174193,1731532238929,-500.0,0.00028219,4]
[342174194,1731532238951,-994.42,0.00028219,4]
[342174195,1731532238962,-500.0,0.00028219,4]
[342174196,1731532238972,-500.0,0.00028219,4]
[342174197,1731532238982,-500.0,0.00028219,4]
[342174198,1731532238992,-500.0,0.00028219,4]
[342174199,1731532239002,-500.0,0.00028219,4]
[342174200,1731532239013,-500.0,0.00028219,4]
[342174201,1731532239022,-500.0,0.00028219,4]
[342174202,1731532239031,-952.72,0.00028219,4]
[342174203,1731532239041,-576.71,0.00028219,4]
[342174204,1731532239050,-506.82,0.00028219,4]
[342174205,1731532239060,-151.0,0.00028219,7]
[342174206,1731532239069,-1000.0,0.00028221,5]
[342174207,1731532239079,-1386.7,0.0002836,3]
[342174208,1731532239088,-693.34,0.0002836,3]
[342174209,1731532239097,-3088.74124745,0.00028493,2]
[342174211,1731532239107,-2426.61579212,0.00028493,2]
[342174213,1731532239116,-151.0,0.00028493,7]
[342174215,1731532239125,-151.0,0.00028493,2]
[342174217,1731532239135,-279.137255,0.00028493,7]
[342174227,1731532239227,-151.0,0.00028493,7]
[342174229,1731532239249,-261.933598,0.00028493,7]
[342174231,1731532239260,-472.37134017,0.00028493,4]
[342174232,1731532239270,-500.0,0.00028493,4]
[342174234,1731532239279,-500.0,0.00028493,4]
[342174235,1731532239289,-500.0,0.00028493,4]
[342174237,1731532239299,-500.0,0.00028493,4]
[342174238,1731532239308,-350.35138228,0.00028493,4]
[342174239,1731532239317,-500.0,0.00028493,4]
[342174240,1731532239327,-500.0,0.00028493,4]
[342174241,1731532239337,-500.0,0.00028493,4]
[342174242,1731532239346,-500.0,0.00028493,4]
[342174243,1731532239355,-500.0,0.00028493,4]
[342174244,1731532239365,-735.33,0.00028493,4]
[342174245,1731532239376,-500.0,0.00028493,4]
[342174246,1731532239385,-500.0,0.00028493,4]
[342174247,1731532239395,-268.08887573,0.00028493,4]
[342174248,1731532239405,-500.0,0.00028493,4]
[342174249,1731532239415,-627.50542959,0.00028493,4]
[342174250,1731532239425,-971.59,0.00028493,4]
[342174251,1731532239436,-500.0,0.00028493,4]
[342174252,1731532239457,-151.0,0.00028493,7]
[342174253,1731532239467,-301.97304999,0.00028493,4]
[342174254,1731532239476,-157.834512,0.00028493,7]
[342174255,1731532239485,-759.04,0.00028493,4]
[342174256,1731532239495,-500.0,0.00028493,4]
[342174257,1731532239505,-151.0,0.00028493,7]
[342174258,1731532239515,-500.0,0.00028493,4]
[342174259,1731532239524,-153.95832004,0.00028493,4]
[342174260,1731532239534,-500.0,0.00028493,4]
[342174261,1731532239544,-500.0,0.00028493,4]
[342174262,1731532239553,-500.0,0.00028493,4]
[342174263,1731532239562,-151.0,0.00028493,7]
[342174264,1731532239572,-500.0,0.00028493,4]
[342174265,1731532239582,-151.0,0.00028493,7]
[342174266,1731532239591,-151.0,0.00028493,7]
[342174267,1731532239601,-151.0,0.00028493,7]
[342174268,1731532239611,-500.0,0.00028493,4]
[342174269,1731532239621,-500.0,0.00028493,4]
[342174270,1731532239631,-500.0,0.00028493,4]
[342174271,1731532239641,-500.0,0.00028493,4]
[342174272,1731532239651,-500.0,0.00028493,4]
[342174273,1731532239661,-560.48,0.00028493,4]
[342174274,1731532239671,-500.0,0.00028493,4]
[342174275,1731532239680,-151.0,0.00028493,7]
[342174276,1731532239701,-500.0,0.00028493,4]
[342174277,1731532239711,-500.0,0.00028493,4]
[342174278,1731532239723,-5692.77,0.00028493,4]
[342174279,1731532239733,-500.0,0.00028493,4]
[342174280,1731532239742,-500.0,0.00028493,4]
[342174281,1731532239751,-500.0,0.00028493,4]
[342174282,1731532239760,-500.0,0.00028493,4]
[342174283,1731532239770,-500.0,0.00028493,4]
[342174284,1731532239781,-500.0,0.00028493,4]
[342174285,1731532239791,-562.33,0.00028493,4]
[342174286,1731532239802,-151.0,0.00028493,7]
[342174287,1731532239812,-500.0,0.00028493,4]
[342174288,1731532239821,-151.0,0.00028493,7]
[342174289,1731532239831,-500.0,0.00028493,4]
[342174290,1731532239841,-42.76171896,0.00028493,4]
[342174291,1731532239855,-457.23828104,0.00028493,4]
[342174292,1731532239865,-151.0,0.00028493,7]
[342174293,1731532239876,-476.94660352,0.00028493,4]
[342174294,1731532239885,-500.0,0.00028493,4]
[342174295,1731532239895,-500.0,0.00028493,4]
[342174296,1731532239905,-500.0,0.00028493,4]
[342174297,1731532239915,-1018.28,0.00028493,4]
[342174298,1731532239925,-500.0,0.00028493,4]
[342174299,1731532239935,-608.18,0.00028493,4]
[342174300,1731532239957,-500.0,0.00028493,4]
[342174301,1731532239967,-500.0,0.00028493,4]
[342174302,1731532239976,-500.0,0.00028493,4]
[342174303,1731532239986,-500.0,0.00028493,4]
[342174304,1731532239997,-150.05,0.00028493,4]
[342174305,1731532240008,-175.384822,0.00028493,7]
[342174306,1731532240017,-500.0,0.00028493,4]
[342174307,1731532240027,-500.0,0.00028493,4]
[342174308,1731532240037,-1499.76,0.00028493,4]
[342174309,1731532240047,-175.384822,0.00028493,7]
[342174310,1731532240057,-500.0,0.00028493,4]
[342174311,1731532240067,-500.0,0.00028493,4]
[342174312,1731532240076,-299.64429238,0.00028493,4]
[342174313,1731532240089,-200.35570762,0.00028493,4]
[342174315,1731532240099,-1789.42,0.00028493,4]
[342174316,1731532240109,-150.05,0.00028493,4]
[342174317,1731532240119,-151.0,0.00028493,7]
[342174318,1731532240128,-500.0,0.00028493,4]
[342174319,1731532240137,-500.0,0.00028493,4]
[342174320,1731532240147,-500.0,0.00028493,4]
[342174321,1731532240157,-1157.5,0.00028493,4]
[342174322,1731532240166,-500.0,0.00028493,4]
[342174323,1731532240176,-500.0,0.00028493,4]
[342174324,1731532240186,-500.0,0.00028493,4]
[342174326,1731532240208,-505.35441379,0.00028493,4]
[342174327,1731532240217,-500.0,0.00028493,4]
[342174329,1731532240227,-151.0,0.00028493,7]
[342174330,1731532240237,-500.0,0.00028493,4]
[342174331,1731532240246,-151.0,0.00028493,7]
[342174332,1731532240256,-151.0,0.00028493,7]
[342174333,1731532240266,-500.0,0.00028493,4]
[342174335,1731532240275,-500.0,0.00028493,4]
[342174336,1731532240285,-2063.36,0.00028493,4]
[342174337,1731532240294,-500.0,0.00028493,4]
[342174338,1731532240304,-994.42,0.00028493,4]
[342174339,1731532240314,-500.0,0.00028493,4]
[342174340,1731532240324,-500.0,0.00028493,4]
[342174341,1731532240334,-500.0,0.00028493,4]
[342174342,1731532240343,-223.23589047,0.00028493,4]
[342174343,1731532240353,-500.0,0.00028493,4]
[342174345,1731532240363,-500.0,0.00028493,4]
[342174347,1731532240380,-500.0,0.00028493,4]
[342174348,1731532240390,-952.72,0.00028493,4]
[342174349,1731532240399,-576.71,0.00028493,4]
[342174350,1731532240409,-506.82,0.00028493,4]
[342174351,1731532240418,-151.0,0.00028493,7]
[342174352,1731532240428,-500.0,0.00028521,5]
[342174353,1731532240443,-1000.0,0.00028521,5]
[342174355,1731532240458,-811.75461234,0.00028591,2]
[342174356,1731532240468,-500.01259,0.000286,27]
[342174358,1731532240478,-270.85091355,0.00028656,2]
[342174360,1731532240488,-1470.601103,0.000287,2]
[342174362,1731532240498,-500.0,0.00028767,4]
[342174364,1731532240508,-163.935538,0.00028767,4]
[342174365,1731532240517,-500.0,0.00028767,4]
[342174367,1731532240527,-3206.303,0.00028767,2]
[342174368,1731532240537,-500.0,0.00028767,4]
[342174369,1731532240547,-500.0,0.00028767,4]
[342174370,1731532240557,-500.0,0.00028767,4]
[342174371,1731532240567,-500.0,0.00028767,4]
[342174372,1731532240576,-500.0,0.00028767,4]
[342174373,1731532240586,-500.0,0.00028767,4]
[342174374,1731532240596,-500.0,0.00028767,4]
[342174375,1731532240606,-500.0,0.00028767,4]
[342174376,1731532240615,-529.44948227,0.00028767,4]
[342174377,1731532240626,-500.0,0.00028767,4]
[342174378,1731532240636,-500.0,0.00028767,7]
[342174379,1731532240645,-151.0,0.00028767,7]
[342174380,1731532240654,-500.0,0.00028767,4]
[342174381,1731532240663,-151.0,0.00028767,7]
[342174382,1731532240673,-500.0,0.00028767,4]
[342174383,1731532240683,-151.0,0.00028767,7]
[342174384,1731532240707,-151.0,0.00028767,7]
[342174385,1731532240717,-151.0,0.00028767,7]
[342174386,1731532240726,-151.0,0.00028767,7]
[342174387,1731532240738,-151.0,0.00028767,7]
[342174388,1731532240748,-151.0,0.00028767,7]
[342174389,1731532240757,-500.0,0.00028767,4]
[342174390,1731532240766,-500.0,0.00028767,4]
[342174391,1731532240776,-500.0,0.00028767,4]
[342174392,1731532240785,-500.0,0.00028767,4]
[342174393,1731532240795,-151.0,0.00028767,7]
[342174394,1731532240805,-336.634507,0.00028767,7]
[342174395,1731532240815,-735.33,0.00028767,4]
[342174396,1731532240824,-336.634507,0.00028767,7]
[342174397,1731532240833,-500.0,0.00028767,4]
[342174398,1731532240842,-500.0,0.00028767,4]
[342174399,1731532240851,-500.0,0.00028767,4]
[342174400,1731532240860,-971.59,0.00028767,4]
[342174401,1731532240871,-500.0,0.00028767,4]
[342174402,1731532240880,-433.04756596,0.00028767,4]
[342174403,1731532240897,-291.0020642,0.00028767,4]
[342174404,1731532240912,-34.99036984,0.00028767,4]
[342174405,1731532240921,-500.0,0.00028767,4]
[342174406,1731532240931,-355.72650837,0.00028767,4]
[342174407,1731532240967,-500.0,0.00026999,2]
[342174408,1731532240976,-309.57703601,0.00026999,2]
[342174409,1731532240985,-14.69028847,0.00026999,2]
[342174410,1731532241497,-267.4185,0.0002,2]
[342174411,1731532241508,-901.85233333,0.0002,2]
[342174412,1731532241518,-443.42336337,0.00026999,2]
[342174413,1731532241534,-53.16154346,0.00026999,2]
[342174414,1731532241543,-626.13256543,0.00026999,2]
[342174415,1731532241553,-187.638246,0.00026999,2]
[342174416,1731532241562,-500.0,0.00026999,2]
[342174417,1731532241571,-500.0,0.00026999,2]
[342174418,1731532241581,-500.0,0.00026999,2]
[342174419,1731532241590,-500.0,0.00026999,2]
[342174420,1731532241600,-500.0,0.00026999,2]
[342174421,1731532241609,-500.0,0.00026999,2]
[342174422,1731532241618,-500.0,0.00026999,2]
[342174423,1731532241627,-500.0,0.00026999,2]
[342174424,1731532241636,-500.0,0.00026999,2]
[342174425,1731532241645,-624.86308532,0.00026999,2]
[342174426,1731532241654,-500.0,0.00027673,5]
[342174427,1731532241663,-1778.7,0.00028197,15]
[342174428,1731532241672,-1677.59,0.00028209,10]
[342174429,1731532241771,-500.72220708,0.00028221,5]
[342174430,1731532241782,-144.27349163,0.00028767,4]
[342174431,1731532241791,-207.05185951,0.00028767,4]
[342174432,1731532241800,-500.0,0.00028767,4]
[342174433,1731532241809,-500.0,0.00028767,4]
[342174434,1731532241818,-500.0,0.00028767,4]
[342174435,1731532241827,-500.0,0.00028767,4]
[342174436,1731532241837,-500.0,0.00028767,4]
[342174437,1731532241846,-500.0,0.00028767,4]
[342174438,1731532241856,-166.73041007,0.00028767,4]
[342174439,1731532241866,-500.0,0.00028767,4]